fUSD/lending_fUSD_20250109
["ID","MTS","AMOUNT","RATE_DAILY","PERIOD"]
[348198123,1736380831171,150.0,0.00018638,120]
[348198128,1736381198377,176.09,7.428e-05,2]
[348198130,1736381310754,150.0,0.00018738,120]
[348198136,1736381431797,-150.0,9.26e-05,2]
[348198137,1736381431808,-250.0,9.456e-05,2]
[348198138,1736381431817,-9.49973001,9.586e-05,2]
[348198139,1736381431955,-290.50026999,9.586e-05,2]
[348198140,1736381431965,-1786.28331512,9.587e-05,2]
[348198141,1736381432064,-7910.70668488,9.587e-05,2]
[348198142,1736381432073,-188.05732309,9.588e-05,2]
[348198143,1736381432083,-5313.0,9.589e-05,2]
[348198144,1736381432092,-943.6316685,9.589e-05,2]
[348198145,1736381432102,-250.0,9.598e-05,2]
[348198146,1736381432112,-250.0,9.637e-05,2]
[348198147,1736381432123,-150.0,9.649e-05,2]
[348198148,1736381432133,-210.13,9.769e-05,2]
[348198149,1736381432142,-150.0,9.772e-05,2]
[348198150,1736381432154,-163.73,9.815e-05,2]
[348198151,1736381432164,-1000.0,9.912e-05,2]
[348198152,1736381432173,-150.0,9.934e-05,2]
[348198153,1736381432183,-1027.58,9.996e-05,2]
[348198154,1736381432194,-1365.85,9.996e-05,2]
[348198155,1736381432204,-2734.65,9.996e-05,2]
[348198156,1736381432214,-500.0,9.996e-05,2]
[348198157,1736381432224,-500.0,9.996e-05,2]
[348198158,1736381432233,-500.0,9.996e-05,2]
[348198159,1736381432242,-1843.49,9.996e-05,2]
[348198160,1736381432252,-500.0,9.996e-05,2]
[348198161,1736381432261,-500.0,9.996e-05,2]
[348198162,1736381432271,-775.03,9.996e-05,2]
[348198163,1736381432280,-662.82,9.996e-05,2]
[348198164,1736381432289,-746.99,9.996e-05,2]
[348198165,1736381432298,-500.0,9.996e-05,2]
[348198166,1736381432309,-1000.0,9.996e-05,2]
[348198167,1736381432319,-500.0,9.996e-05,2]
[348198168,1736381432329,-500.0,9.996e-05,2]
[348198169,1736381432340,-1527.54,9.996e-05,2]
[348198170,1736381432349,-500.0,9.998e-05,2]
[348198171,1736381432358,-703.23,9.998e-05,2]
[348198172,1736381432368,-500.0,9.998e-05,2]
[348198173,1736381432377,-500.0,9.998e-05,2]
[348198174,1736381432386,-500.0,9.998e-05,2]
[348198176,1736381432395,-511.9,9.998e-05,2]
[348198178,1736381432405,-500.0,9.998e-05,2]
[348198180,1736381432414,-500.0,9.998e-05,2]
[348198182,1736381432423,-500.0,9.998e-05,2]
[348198184,1736381432432,-500.0,9.998e-05,2]
[348198186,1736381432441,-500.0,9.998e-05,2]
[348198188,1736381432450,-500.0,9.998e-05,2]
[348198190,1736381432459,-609.66,9.998e-05,2]
[348198192,1736381432469,-500.0,9.998e-05,2]
[348198194,1736381432479,-312.27,9.998e-05,2]
[348198196,1736381432488,-500.0,9.998e-05,2]
[348198198,1736381432497,-500.0,9.998e-05,2]
[348198200,1736381432506,-120.9821455,9.998e-05,2]
[348198202,1736381432535,-309.012,9.998e-05,2]
[348198203,1736381432576,-70.0058545,9.998e-05,2]
[348198204,1736381432585,-500.0,9.998e-05,2]
[348198205,1736381432594,-500.0,9.998e-05,2]
[348198206,1736381432603,-500.0,9.998e-05,2]
[348198207,1736381432613,-2258.81,9.998e-05,2]
[348198208,1736381432622,-427.25667547,9.998e-05,2]
[348198209,1736381432634,-72.74332453,9.998e-05,2]
[348198210,1736381432643,-407.13197266,9.998e-05,2]
[348198211,1736381432663,-92.86802734,9.998e-05,2]
[348198212,1736381432673,-383.80709705,9.998e-05,2]
[348198213,1736381432684,-116.19290295,9.998e-05,2]
[348198214,1736381432695,-500.0,9.998e-05,2]
[348198215,1736381432704,-719.08102696,9.998e-05,2]
[348198216,1736381432716,-494.43897304,9.998e-05,2]
[348198217,1736381432726,-1992.93,9.998e-05,2]
[348198218,1736381432735,-736.91926361,9.998e-05,2]
[348198219,1736381432748,-292.50073639,9.998e-05,2]
[348198220,1736381432757,-188.05732309,9.998e-05,2]
[348198221,1736381432766,-500.0,9.998e-05,2]
[348198222,1736381432775,-580.61,9.999e-05,2]
[348198223,1736381432784,-805.33,9.999e-05,2]
[348198224,1736381432793,-919.5,9.999e-05,2]
[348198225,1736381432802,-921.09,9.999e-05,2]
[348198226,1736381432811,-1774.42,9.999e-05,2]
[348198227,1736381432819,-987.62,9.999e-05,2]
[348198228,1736381432828,-1490.41,9.999e-05,2]
[348198229,1736381432837,-740.66,9.999e-05,2]
[348198230,1736381432847,-596.51,9.999e-05,2]
[348198231,1736381432857,-671.65,9.999e-05,2]
[348198232,1736381432865,-500.0,9.999e-05,2]
[348198233,1736381432874,-1039.3,9.999e-05,2]
[348198234,1736381432883,-500.0,9.999e-05,2]
[348198235,1736381432892,-1479.82,9.999e-05,2]
[348198236,1736381432902,-500.0,9.999e-05,2]
[348198237,1736381432910,-826.12,9.999e-05,2]
[348198238,1736381432919,-918.17,9.999e-05,2]
[348198239,1736381432929,-908.36,9.999e-05,2]
[348198240,1736381432938,-500.0,9.999e-05,2]
[348198241,1736381432947,-500.0,9.999e-05,2]
[348198242,1736381432956,-150.0,0.00010066,2]
[348198243,1736381432965,-150.0,0.00010075,2]
[348198244,1736381432974,-159.72,0.00010137,2]
[348198245,1736381432983,-150.0,0.00010165,2]
[348198246,1736381432992,-1027.58,0.0001027,2]
[348198247,1736381433002,-1365.85,0.0001027,2]
[348198248,1736381433012,-2734.65,0.0001027,2]
[348198249,1736381433022,-500.0,0.0001027,2]
[348198250,1736381433032,-500.0,0.0001027,2]
[348198251,1736381433041,-500.0,0.0001027,2]
[348198252,1736381433050,-538.64876652,0.0001027,2]
[348198253,1736381437694,-517.54,9.999e-05,2]
[348198254,1736381437705,-1304.84123348,0.0001027,2]
[348198255,1736381437714,-533.25532281,0.0001027,2]
[348198256,1736381437724,-500.0,0.0001027,2]
[348198257,1736381437736,-775.03,0.0001027,2]
[348198258,1736381437746,-62.55896775,0.0001027,2]
[348198259,1736381437764,-600.26103225,0.0001027,2]
[348198260,1736381437774,-746.99,0.0001027,2]
[348198261,1736381437784,-500.0,0.0001027,2]
[348198262,1736381437795,-1000.0,0.0001027,2]
[348198263,1736381437805,-500.0,0.0001027,2]
[348198265,1736381438021,-500.0,0.0001027,2]
[348198267,1736381438031,-1527.54,0.0001027,2]
[348198269,1736381438040,-500.0,0.00010272,2]
[348198271,1736381438049,-703.23,0.00010272,2]
[348198273,1736381438059,-500.0,0.00010272,2]
[348198275,1736381438068,-500.0,0.00010272,2]
[348198277,1736381438078,-500.0,0.00010272,2]
[348198279,1736381438087,-511.9,0.00010272,2]
[348198281,1736381438096,-648.0,0.00010272,2]
[348198283,1736381438105,-465.87896775,0.00010272,2]
[348198286,1736381438121,-34.12103225,0.00010272,2]
[348198288,1736381438131,-500.0,0.00010272,2]
[348198290,1736381438141,-500.0,0.00010272,2]
[348198292,1736381438150,-500.0,0.00010272,2]
[348198294,1736381438159,-500.0,0.00010272,2]
[348198296,1736381438168,-500.0,0.00010272,2]
[348198298,1736381438178,-500.0,0.00010272,2]
[348198300,1736381438187,-500.0,0.00010272,2]
[348198302,1736381438196,-2258.81,0.00010272,2]
[348198304,1736381438206,-500.0,0.00010272,2]
[348198306,1736381438215,-500.0,0.00010272,2]
[348198309,1736381438224,-500.0,0.00010272,2]
[348198312,1736381438234,-1213.52,0.00010272,2]
[348198315,1736381438243,-1992.93,0.00010272,2]
[348198318,1736381438253,-1029.42,0.00010272,2]
[348198320,1736381438262,-500.0,0.00010272,2]
[348198322,1736381438271,-580.61,0.00010273,2]
[348198324,1736381438280,-805.33,0.00010273,2]
[348198326,1736381438290,-919.5,0.00010273,2]
[348198328,1736381438300,-921.09,0.00010273,2]
[348198330,1736381438309,-1774.42,0.00010273,2]
[348198332,1736381438318,-987.62,0.00010273,2]
[348198334,1736381438328,-1490.41,0.00010273,2]
[348198336,1736381438338,-740.66,0.00010273,2]
[348198338,1736381438351,-596.51,0.00010273,2]
[348198340,1736381438360,-671.65,0.00010273,2]
[348198342,1736381438369,-500.0,0.00010273,2]
[348198344,1736381438378,-1039.3,0.00010273,2]
[348198346,1736381438387,-500.0,0.00010273,2]
[348198348,1736381438396,-1479.82,0.00010273,2]
[348198350,1736381438405,-500.0,0.00010273,2]
[348198352,1736381438415,-826.12,0.00010273,2]
[348198353,1736381438424,-918.17,0.00010273,2]
[348198356,1736381438433,-908.36,0.00010273,2]
[348198357,1736381438444,-500.0,0.00010273,2]
[348198359,1736381438454,-500.0,0.00010273,2]
[348198362,1736381438466,-932.13,0.00010461,2]
[348198363,1736381438478,-150.0,0.00010464,2]
[348198366,1736381438488,-1027.58,0.00010544,2]
[348198368,1736381438497,-1365.85,0.00010544,2]
[348198369,1736381438507,-2734.65,0.00010544,2]
[348198371,1736381438516,-500.0,0.00010544,2]
[348198373,1736381438526,-500.0,0.00010544,2]
[348198375,1736381438535,-500.0,0.00010544,2]
[348198377,1736381438545,-1843.49,0.00010544,2]
[348198380,1736381438554,-500.0,0.00010544,2]
[348198382,1736381438564,-775.03,0.00010544,2]
[348198383,1736381438573,-662.82,0.00010544,2]
[348198385,1736381438582,-746.99,0.00010544,2]
[348198387,1736381438591,-500.0,0.00010544,2]
[348198389,1736381438601,-500.0,0.00010544,2]
[348198392,1736381438610,-500.0,0.00010544,2]
[348198394,1736381438621,-1527.54,0.00010544,2]
[348198396,1736381438631,-190.74599901,0.00010545,2]
[348198397,1736381438640,-500.0,0.00010545,2]
[348198399,1736381438649,-631.09934867,0.00010545,2]
[348198401,1736381438663,-500.0,0.00010545,2]
[348198403,1736381438672,-500.0,0.00010545,2]
[348198405,1736381438681,-500.0,0.00010545,2]
[348198407,1736381438691,-500.0,0.00010545,2]
[348198409,1736381438700,-500.0,0.00010545,2]
[348198411,1736381438710,-500.0,0.00010545,2]
[348198413,1736381438719,-500.0,0.00010545,2]
[348198415,1736381438728,-500.0,0.00010545,2]
[348198417,1736381438738,-500.0,0.00010545,2]
[348198419,1736381438748,-500.0,0.00010545,2]
[348198420,1736381438759,-500.0,0.00010545,2]
[348198421,1736381438768,-500.0,0.00010545,2]
[348198422,1736381438777,-537.02,0.00010545,2]
[348198423,1736381438786,-500.0,0.00010545,2]
[348198424,1736381438794,-500.0,0.00010545,2]
[348198425,1736381438803,-500.0,0.00010545,2]
[348198426,1736381438812,-500.0,0.00010545,2]
[348198427,1736381438821,-192.87772921,0.00010545,2]
[348198428,1736381438830,-500.0,0.00010545,2]
[348198429,1736381438839,-500.0,0.00010545,2]
[348198430,1736381438848,-500.0,0.00010545,2]
[348198432,1736381438857,-500.0,0.00010545,2]
[348198434,1736381438866,-500.0,0.00010545,2]
[348198436,1736381438875,-500.0,0.00010545,2]
[348198438,1736381438884,-500.0,0.00010545,2]
[348198440,1736381438893,-500.0,0.00010545,2]
[348198442,1736381438902,-500.0,0.00010545,2]
[348198444,1736381438911,-500.0,0.00010545,2]
[348198446,1736381438921,-500.0,0.00010545,2]
[348198448,1736381438930,-500.0,0.00010545,2]
[348198450,1736381438939,-500.0,0.00010545,2]
[348198452,1736381438948,-500.0,0.00010545,2]
[348198454,1736381438957,-567.92837844,0.00010545,2]
[348198456,1736381438966,-500.0,0.00010545,2]
[348198458,1736381438975,-500.0,0.00010545,2]
[348198460,1736381438984,-591.77,0.00010545,2]
[348198462,1736381438993,-500.0,0.00010545,2]
[348198464,1736381439003,-500.0,0.00010545,2]
[348198466,1736381439012,-500.0,0.00010545,2]
[348198468,1736381439021,-500.0,0.00010545,2]
[348198470,1736381439030,-500.0,0.00010545,2]
[348198472,1736381439040,-500.0,0.00010545,2]
[348198474,1736381439049,-500.0,0.00010545,2]
[348198476,1736381439058,-508.27,0.00010545,2]
[348198478,1736381439067,-527.73284386,0.00010545,2]
[348198479,1736381439076,-500.0,0.00010545,2]
[348198482,1736381439085,-500.0,0.00010545,2]
[348198484,1736381439095,-500.0,0.00010545,2]
[348198486,1736381439105,-2134.68,0.00010545,2]
[348198488,1736381439116,-500.0,0.00010545,2]
[348198490,1736381439125,-500.0,0.00010545,2]
[348198492,1736381439134,-500.0,0.00010545,2]
[348198494,1736381439144,-2604.07,0.00010545,2]
[348198496,1736381439153,-485.68045506,0.00010545,2]
[348198497,1736381439163,-1621.87,0.00010545,2]
[348198500,1736381439173,-500.0,0.00010545,2]
[348198502,1736381439182,-500.0,0.00010545,2]
[348198504,1736381439191,-500.0,0.00010545,2]
[348198506,1736381439200,-500.0,0.00010545,2]
[348198507,1736381439209,-500.0,0.00010545,2]
[348198509,1736381439218,-500.0,0.00010545,2]
[348198511,1736381439227,-1925.36,0.00010545,2]
[348198513,1736381439236,-500.0,0.00010545,2]
[348198515,1736381439245,-500.0,0.00010545,2]
[348198517,1736381439254,-500.0,0.00010545,2]
[348198519,1736381439263,-500.0,0.00010545,2]
[348198521,1736381439273,-500.0,0.00010545,2]
[348198523,1736381439282,-500.0,0.00010545,2]
[348198525,1736381439292,-500.0,0.00010545,2]
[348198527,1736381439301,-500.0,0.00010545,2]
[348198529,1736381439310,-500.0,0.00010545,2]
[348198531,1736381439319,-1921.65,0.00010545,2]
[348198533,1736381439329,-500.0,0.00010545,2]
[348198535,1736381439339,-1164.11,0.00010545,2]
[348198537,1736381439348,-500.0,0.00010545,2]
[348198539,1736381439358,-500.0,0.00010545,2]
[348198541,1736381439367,-500.0,0.00010545,2]
[348198543,1736381439377,-500.0,0.00010545,2]
[348198545,1736381439387,-500.0,0.00010545,2]
[348198547,1736381439397,-2067.12,0.00010545,2]
[348198549,1736381439408,-500.0,0.00010545,2]
[348198551,1736381439419,-500.0,0.00010545,2]
[348198553,1736381439429,-500.0,0.00010545,2]
[348198555,1736381439438,-500.0,0.00010545,2]
[348198557,1736381439447,-1445.1,0.00010545,2]
[348198559,1736381439456,-500.0,0.00010545,2]
[348198561,1736381439466,-500.0,0.00010545,2]
[348198563,1736381439475,-500.0,0.00010545,2]
[348198565,1736381439484,-1152.65,0.00010545,2]
[348198567,1736381439493,-1663.57,0.00010545,2]
[348198569,1736381439502,-515.05,0.00010545,2]
[348198571,1736381439512,-858.35,0.00010545,2]
[348198573,1736381439522,-317.97043074,0.00010545,2]
[348198574,1736381439531,-681.92,0.00010545,2]
[348198576,1736381439540,-500.0,0.00010545,2]
[348198578,1736381439549,-523.8,0.00010545,2]
[348198580,1736381439558,-500.0,0.00010545,2]
[348198582,1736381439567,-500.0,0.00010545,2]
[348198584,1736381439576,-500.0,0.00010545,2]
[348198586,1736381439585,-1844.65,0.00010545,2]
[348198589,1736381439595,-500.0,0.00010545,2]
[348198590,1736381439604,-500.0,0.00010545,2]
[348198593,1736381439613,-500.0,0.00010545,2]
[348198595,1736381439623,-500.0,0.00010545,2]
[348198596,1736381439632,-536.12,0.00010545,2]
[348198599,1736381439643,-500.0,0.00010545,2]
[348198601,1736381439656,-500.0,0.00010545,2]
[348198603,1736381439666,-500.0,0.00010545,2]
[348198604,1736381439675,-1176.98,0.00010545,2]
[348198607,1736381439685,-500.0,0.00010545,2]
[348198608,1736381439695,-420.0,0.00010545,2]
[348198610,1736381439705,-500.0,0.00010545,2]
[348198612,1736381439714,-509.03,0.00010545,2]
[348198614,1736381439724,-500.0,0.00010545,2]
[348198616,1736381439735,-500.0,0.00010545,2]
[348198618,1736381439744,-1052.74,0.00010545,2]
[348198620,1736381439754,-474.12,0.00010545,2]
[348198622,1736381439763,-500.0,0.00010545,2]
[348198624,1736381439772,-500.0,0.00010545,2]
[348198626,1736381439782,-1033.18,0.00010545,2]
[348198628,1736381439791,-500.0,0.00010545,2]
[348198630,1736381439800,-500.0,0.00010545,2]
[348198632,1736381439809,-500.0,0.00010546,2]
[348198634,1736381439819,-500.0,0.00010546,2]
[348198636,1736381439828,-500.0,0.00010546,2]
[348198638,1736381439836,-625.35,0.00010546,2]
[348198640,1736381439846,-703.23,0.00010546,2]
[348198642,1736381439856,-500.0,0.00010546,2]
[348198644,1736381439865,-500.0,0.00010546,2]
[348198646,1736381439875,-500.0,0.00010546,2]
[348198648,1736381439884,-663.05,0.00010546,2]
[348198650,1736381439893,-500.0,0.00010546,2]
[348198652,1736381439903,-1184.37,0.00010546,2]
[348198654,1736381439912,-189.73610565,0.00010546,2]
[348198656,1736381439922,-511.9,0.00010546,2]
[348198658,1736381439931,-500.0,0.00010546,2]
[348198660,1736381439941,-500.0,0.00010546,2]
[348198662,1736381439950,-500.0,0.00010546,2]
[348198664,1736381439959,-464.312105,0.00010546,2]
[348198666,1736381439969,-500.0,0.00010546,2]
[348198668,1736381439979,-1377.0,0.00010546,2]
[348198670,1736381439988,-442.41899,0.00010546,2]
[348198672,1736381439998,-500.0,0.00010546,2]
[348198674,1736381440007,-403.07363432,0.00010546,2]
[348198676,1736381440016,-500.0,0.00010546,2]
[348198678,1736381440025,-500.0,0.00010546,2]
[348198680,1736381440035,-500.0,0.00010546,2]
[348198682,1736381440044,-500.0,0.00010546,2]
[348198684,1736381440053,-1662.46,0.00010546,2]
[348198686,1736381440062,-500.0,0.00010546,2]
[348198688,1736381440071,-500.0,0.00010546,2]
[348198690,1736381440081,-2258.81,0.00010546,2]
[348198692,1736381440090,-500.0,0.00010546,2]
[348198694,1736381440104,-500.0,0.00010546,2]
[348198696,1736381440114,-500.0,0.00010546,2]
[348198698,1736381440123,-669.18,0.00010546,2]
[348198700,1736381440132,-500.0,0.00010546,2]
[348198702,1736381440142,-1213.52,0.00010546,2]
[348198704,1736381440151,-1992.93,0.00010546,2]
[348198706,1736381440160,-165.907125,0.00010546,2]
[348198708,1736381440170,-811.59,0.00010546,2]
[348198710,1736381440179,-174.117042,0.00010546,2]
[348198712,1736381440188,-1025.32,0.00010546,2]
[348198714,1736381440197,-948.86,0.00010546,2]
[348198716,1736381440206,-1029.42,0.00010546,2]
[348198718,1736381440215,-684.45,0.00010546,2]
[348198720,1736381440224,-500.0,0.00010546,2]
[348198722,1736381440233,-1480.5,0.00010546,2]
[348198724,1736381440242,-244.4346241,0.00010546,2]
[348198726,1736381440251,-218.30698123,0.00010546,2]
[348198728,1736381440260,-580.61,0.00010547,2]
[348198730,1736381440269,-805.33,0.00010547,2]
[348198732,1736381440277,-919.5,0.00010547,2]
[348198734,1736381440286,-921.09,0.00010547,2]
[348198735,1736381440296,-1774.42,0.00010547,2]
[348198738,1736381440305,-355.5841683,0.00010547,2]
[348198762,1736381440533,-500.0,0.00010545,2]
[348198764,1736381440542,-632.0358317,0.00010547,2]
[348198766,1736381440551,-321.9543393,0.00010547,2]
[348198773,1736381440609,-1168.4556607,0.00010547,2]
[348198775,1736381440619,-740.66,0.00010547,2]
[348198777,1736381440629,-596.51,0.00010547,2]
[348198779,1736381440638,-671.65,0.00010547,2]
[348198781,1736381440648,-9.90613478,0.00010547,2]
[348198783,1736381440664,-490.09386522,0.00010547,2]
[348198785,1736381440673,-1039.3,0.00010547,2]
[348198787,1736381440683,-500.0,0.00010547,2]
[348198789,1736381440692,-1479.82,0.00010547,2]
[348198791,1736381440702,-500.0,0.00010547,2]
[348198793,1736381440712,-826.12,0.00010547,2]
[348198795,1736381440721,-918.17,0.00010547,2]
[348198797,1736381440732,-908.36,0.00010547,2]
[348198799,1736381440741,-500.0,0.00010547,2]
[348198801,1736381440751,-500.0,0.00010547,2]
[348198803,1736381440760,-150.0,0.00010641,2]
[348198805,1736381440770,-437.32,0.00010673,2]
[348198807,1736381440780,-150.0,0.00010758,2]
[348198809,1736381440790,-150.0,0.00010793,2]
[348198811,1736381440799,-1027.58,0.00010818,2]
[348198813,1736381440810,-1425.24,0.00010818,2]
[348198815,1736381440819,-1365.85,0.00010818,2]
[348198817,1736381440828,-2734.65,0.00010818,2]
[348198819,1736381440838,-500.0,0.00010818,2]
[348198821,1736381440848,-500.0,0.00010818,2]
[348198823,1736381440859,-500.0,0.00010818,2]
[348198825,1736381440869,-1843.49,0.00010818,2]
[348198827,1736381440879,-500.0,0.00010818,2]
[348198829,1736381440888,-775.03,0.00010818,2]
[348198831,1736381440898,-662.82,0.00010818,2]
[348198833,1736381440908,-746.99,0.00010818,2]
[348198835,1736381440918,-500.0,0.00010818,2]
[348198837,1736381440927,-500.0,0.00010818,2]
[348198839,1736381440936,-500.0,0.00010818,2]
[348198841,1736381440946,-1155.70063478,0.00010818,2]
[348198845,1736381441053,-371.83936522,0.00010818,2]
[348198847,1736381441063,-500.0,0.00010819,2]
[348198849,1736381441071,-500.0,0.00010819,2]
[348198851,1736381441081,-500.0,0.00010819,2]
[348198853,1736381441090,-593.11,0.00010819,2]
[348198855,1736381441100,-500.0,0.00010819,2]
[348198857,1736381441109,-500.0,0.00010819,2]
[348198859,1736381441119,-500.0,0.00010819,2]
[348198861,1736381441128,-500.0,0.00010819,2]
[348198863,1736381441138,-382.53123827,0.00010819,2]
[348198865,1736381441147,-500.0,0.00010819,2]
[348198867,1736381441156,-381.71680311,0.00010819,2]
[348198869,1736381441167,-537.02,0.00010819,2]
[348198871,1736381441178,-500.0,0.00010819,2]
[348198873,1736381441190,-222.01,0.00010819,2]
[348198875,1736381441202,-500.0,0.00010819,2]
[348198877,1736381441212,-500.0,0.00010819,2]
[348198879,1736381441222,-500.0,0.00010819,2]
[348198881,1736381441232,-500.0,0.00010819,2]
[348198883,1736381441241,-500.0,0.00010819,2]
[348198885,1736381441250,-500.0,0.00010819,2]
[348198887,1736381441261,-500.0,0.00010819,2]
[348198889,1736381441270,-500.0,0.00010819,2]
[348198891,1736381441279,-500.0,0.00010819,2]
[348198893,1736381441288,-500.0,0.00010819,2]
[348198895,1736381441298,-500.0,0.00010819,2]
[348198897,1736381441307,-500.0,0.00010819,2]
[348198899,1736381441316,-500.0,0.00010819,2]
[348198901,1736381441325,-504.51748111,0.00010819,2]
[348198903,1736381441335,-500.0,0.00010819,2]
[348198905,1736381441344,-500.0,0.00010819,2]
[348198907,1736381441354,-500.0,0.00010819,2]
[348198909,1736381441363,-500.0,0.00010819,2]
[348198911,1736381441373,-500.0,0.00010819,2]
[348198913,1736381441382,-500.0,0.00010819,2]
[348198915,1736381441391,-500.0,0.00010819,2]
[348198917,1736381441401,-1621.87,0.00010819,2]
[348198919,1736381441410,-500.0,0.00010819,2]
[348198921,1736381441419,-500.0,0.00010819,2]
[348198923,1736381441428,-500.0,0.00010819,2]
[348198925,1736381441437,-500.0,0.00010819,2]
[348198927,1736381441446,-500.0,0.00010819,2]
[348198929,1736381441455,-1925.36,0.00010819,2]
[348198931,1736381441465,-500.0,0.00010819,2]
[348198933,1736381441475,-500.0,0.00010819,2]
[348198935,1736381441484,-500.0,0.00010819,2]
[348198937,1736381441493,-500.0,0.00010819,2]
[348198939,1736381441502,-500.0,0.00010819,2]
[348198941,1736381441511,-500.0,0.00010819,2]
[348198943,1736381441520,-1921.65,0.00010819,2]
[348198944,1736381441529,-323.37220896,0.00010819,2]
[348198946,1736381441539,-1164.11,0.00010819,2]
[348198949,1736381441549,-500.0,0.00010819,2]
[348198951,1736381441559,-500.0,0.00010819,2]
[348198953,1736381441568,-500.0,0.00010819,2]
[348198955,1736381441577,-500.0,0.00010819,2]
[348198957,1736381441587,-2067.12,0.00010819,2]
[348198959,1736381441596,-500.0,0.00010819,2]
[348198961,1736381441605,-500.0,0.00010819,2]
[348198962,1736381441615,-500.0,0.00010819,2]
[348198964,1736381441625,-1445.1,0.00010819,2]
[348198966,1736381441634,-500.0,0.00010819,2]
[348198969,1736381441648,-500.0,0.00010819,2]
[348198971,1736381441661,-500.0,0.00010819,2]
[348198973,1736381441671,-1152.65,0.00010819,2]
[348198975,1736381441681,-1663.57,0.00010819,2]
[348198977,1736381441691,-515.05,0.00010819,2]
[348198979,1736381441701,-858.35,0.00010819,2]
[348198981,1736381441710,-681.92,0.00010819,2]
[348198983,1736381441719,-500.0,0.00010819,2]
[348198985,1736381441729,-523.8,0.00010819,2]
[348198987,1736381441739,-500.0,0.00010819,2]
[348198988,1736381441748,-500.0,0.00010819,2]
[348198990,1736381441757,-500.0,0.00010819,2]
[348198992,1736381441766,-1844.65,0.00010819,2]
[348198994,1736381441775,-500.0,0.00010819,2]
[348198996,1736381441785,-500.0,0.00010819,2]
[348198998,1736381441794,-500.0,0.00010819,2]
[348199000,1736381441803,-500.0,0.00010819,2]
[348199001,1736381441812,-536.12,0.00010819,2]
[348199002,1736381441823,-500.38,0.00010819,2]
[348199003,1736381441832,-500.0,0.00010819,2]
[348199004,1736381441842,-1176.98,0.00010819,2]
[348199005,1736381441852,-500.0,0.00010819,2]
[348199006,1736381441861,-500.0,0.00010819,2]
[348199008,1736381441870,-509.03,0.00010819,2]
[348199010,1736381441881,-500.0,0.00010819,2]
[348199012,1736381441890,-500.0,0.00010819,2]
[348199014,1736381441899,-1052.74,0.00010819,2]
[348199016,1736381441910,-500.0,0.00010819,2]
[348199018,1736381441919,-1033.18,0.00010819,2]
[348199020,1736381441928,-500.0,0.00010819,2]
[348199022,1736381441938,-500.0,0.00010819,2]
[348199041,1736381442125,-500.0,0.00010819,2]
[348199042,1736381442134,-500.0,0.0001082,2]
[348199044,1736381442144,-500.0,0.0001082,2]
[348199046,1736381442153,-155.16,0.0001082,2]
[348199048,1736381442162,-625.35,0.0001082,2]
[348199049,1736381442171,-703.23,0.0001082,2]
[348199051,1736381442180,-500.0,0.0001082,2]
[348199053,1736381442190,-500.0,0.0001082,2]
[348199055,1736381442199,-500.0,0.0001082,2]
[348199057,1736381442208,-663.05,0.0001082,2]